Cogmind - Beta 14 @@@ ROGUE MODE // 2024.09.20 @ 19:01:21 Player: Dull Result: Destroyed by XM-9ZB(R) with Subdweller Machine Gun Performance ------------- Evolutions (0) 0 Regions Visited (2) 400 Robots Destroyed (32) 160 Value Destroyed (869) 869 Prototype IDs (0) 0 Alien Tech Used (0) 0 Bonus (0) 0 TOTAL SCORE: 1429 Bonus ------- None Cogmind --------- Core Integrity 0/250 Matter 264/300 Energy 250/250 System Corruption 0% Temperature Cool (0) Movement Treading (160) Location -10/Subcaves Parts ------- > --- POWER (1) -------- Ion Engine > --- PROPULSION (2) --- Spiked Treads Spiked Treads > --- UTILITY (2) ------ Medium Storage Unit Makeshift Light Armor Plating > --- WEAPON (2) ------- Barrage Gun Barrage Gun > --- INVENTORY (10) --- Ion Engine High-capacity Matter Pod (200) Sensor Array Signal Interpreter Signal Interpreter Hacking Suite Makeshift System Shield Light Cannon Battle Cannon Makeshift Sword Peak State ------------ > --- POWER ------------ Ion Engine > --- PROPULSION ------- Spiked Treads Spiked Treads > --- UTILITY ---------- Medium Storage Unit Makeshift Light Armor Plating > --- WEAPON ----------- Barrage Gun Makeshift Sword > --- INVENTORY -------- Ion Engine High-capacity Matter Pod Sensor Array Signal Interpreter Signal Interpreter Hacking Suite Makeshift System Shield Barrage Gun Light Cannon Battle Cannon [Rating: 18] Favorites ----------- Power Ion Engine Engine Ion Engine Propulsion Light Treads Treads Light Treads Leg Aluminum Leg Wheel Subdweller Monowheel Flight Unit Flight Unit Utility Medium Storage Unit Device Improved Terrain Scanner Storage Medium Storage Unit Processor Visual Processing Unit Protection Makeshift Light Armor Plating Weapon Barrage Gun Energy Gun Small Laser Ballistic Gun Barrage Gun Ballistic Cannon Battle Cannon Slashing Weapon Makeshift Sword Build | -11 -10 -10 ------- Run | Yrd Mat Sub Slots Evolved . | . . . Power . | . . . Propulsion . | . . . Utility . | . . . Weapon . | . . . Parts Attached 29 | 2 17 10 Power 3 | . 3 . Engine 3 | . 3 . Core . | . . . Reactor . | . . . Propulsion 8 | . 4 4 Treads 6 | . 4 2 Leg . | . . . Wheel 1 | . . 1 Hover . | . . . Flight 1 | . . 1 Utility 6 | 1 3 2 Device 1 | 1 . . Storage 1 | . 1 . Processor 1 | . 1 . Hackware . | . . . Protection 3 | . 1 2 Artifact . | . . . Weapon 12 | 1 7 4 Energy Gun 1 | 1 . . Energy Cannon . | . . . Ballistic Gun 8 | . 6 2 Ballistic Cannon 2 | . 1 1 Launcher . | . . . Special Weapon . | . . . Impact Weapon . | . . . Slashing Weapon 1 | . . 1 Piercing Weapon . | . . . Special Melee Weapon . | . . . Unidentified Prototypes . | . . . Parts Lost 4 | . . 4 Power . | . . . Propulsion 3 | . . 3 Utility . | . . . Weapon 1 | . . 1 Highest Loss Streak 2 | . . 2 To Critical Strikes . | . . . Average Slot Usage (%) 97 | . 99 95 Engine 14 | . 14 14 Treads 20 | . 27 17 Wheel 1 | . . 2 Flight 3 | . . 5 Device 1 | . 3 . Storage 14 | . 14 14 Processor 3 | . 8 . Protection 9 | . 1 14 Energy Gun 3 | . 9 . Ballistic Gun 13 | . 15 12 Ballistic Cannon 9 | . 2 13 Peak Build Rating 18 | 9 10 18 Average Rating 11 | 7 8 12 On Entrance 8 | 6 9 9 Naked Turns . | . . . Heaviest Build 25 | 12 25 25 Greatest Support 40 | 20 40 40 Greatest Overweight (x) 7 | . 1 7 Average Overweight (x) . | . . . Largest Inventory Capacity 10 | 8 10 10 Average Capacity 9 | 8 9 10 Most Carried 10 | 6 10 10 Average Carried 9 | 6 7 9 Final Capacity 10 | 8 10 10 Final Carried 10 | 6 10 10 Class Distribution -------------------- 58% | Mutant 36% | Derelict-Mutant 5% | Scavenger-Mutant Dominant Class ---------------- Mutant | -10/Materials Derelict-Mutant | -10/Subcaves Resources | -11 -10 -10 ----------- Run | Yrd Mat Sub Matter Collected 1204 | 210 528 466 Remotely . | . . . Salvage Created 1100 | 23 722 355 Parts 66 | 4 43 19 Haulers Intercepted 1 | . 1 . Recyclers Shooed 1 | . 1 . Parts Field Recycled . | . . . Retrieved Matter . | . . . Parts Self-Destructed 16 | . . 16 Prevented . | . . . Kills | -11 -10 -10 ------- Run | Yrd Mat Sub Combat Hostiles Destroyed 24 | . 14 10 Guns 18 | . 13 5 Cannons 6 | . 1 5 Classes Destroyed 9 | 1 7 1 Tunneler 1 | 1 . . Hauler 1 | . 1 . Recycler 1 | . 1 . Operator 1 | . 1 . Turret 2 | . . 2 Watcher 2 | . 2 . Swarmer 7 | . 3 4 Grunt 11 | . 9 2 Subdweller 6 | . 2 4 Best Kill Streak 5 | 1 2 5 Combat Bots Only 4 | . 2 4 Max Kills in Single Turn 1 | 1 1 1 Gunslinging . | . . . Exploded . | . . . Melee . | . . . Uniques/NPCs Destroyed . | . . . Combat | -11 -10 -10 -------- Run | Yrd Mat Sub Hostile Shots Fired 149 | . 51 98 Missed 48 | . 17 31 Damage Taken 1190 | . 418 772 Core 257 | . 91 166 Absorbed by Shields . | . . . Core Remaining (%) 100 | 100 . . Volleys Fired 109 | 1 51 57 Largest 2 | 2 2 2 Hottest 80 | 80 80 67 Shots Fired 209 | 2 102 105 Gun 151 | 2 99 50 Cannon 58 | . 3 55 Launcher . | . . . Special . | . . . Kinetic 151 | . 46 105 Thermal 57 | 1 56 . Explosive . | . . . Electromagnetic 1 | 1 . . Robot Hit Streak 16 | 1 9 16 Robot Miss Streak 4 | 1 4 3 Penetration Max . | . . . Secondary Targets . | . . . Shots Hit Robots 135 | 1 63 71 Core Hits 58 | 1 32 25 Critical Kills . | . . . Critical Parts Destroyed . | . . . Critical Strikes 3 | . 1 2 Blast 3 | . 1 2 Melee Attacks 2 | . . 2 Impact . | . . . Slashing 2 | . . 2 Piercing . | . . . Sneak Attacks . | . . . Combat Hostiles . | . . . Follow-up Attacks . | . . . Damage Inflicted 2156 | 11 820 1325 Guns 1437 | 11 767 659 Cannons 719 | . 53 666 Explosions . | . . . Melee . | . . . Ramming . | . . . Kinetic 1749 | . 424 1325 Thermal 407 | 11 396 . Explosive . | . . . Electromagnetic . | . . . Impact . | . . . Slashing . | . . . Piercing . | . . . Highest Corruption . | . . . Average Corruption . | . . . Corruption Purged . | . . . Corruption Blocked . | . . . Overload Shots . | . . . Overflow Damage 18 | . . 18 Projectiles 18 | . . 18 Explosions . | . . . Melee . | . . . Knockbacks 5 | . . 5 Impact . | . . . Kinetic 5 | . . 5 Secondary . | . . . Self-Inflicted Damage . | . . . Shots . | . . . Rammed . | . . . Targets Rammed . | . . . Kicked . | . . . Crushed . | . . . Highest Temperature 153 | 18 153 13 Average Temperature 44 | 12 48 7 Received Heat Transfer 519 | . 168 351 Siege Activations . | . . . Robots Corrupted . | . . . Combat Hostiles . | . . . Parts Fried . | . . . Impact Corruptions . | . . . Robots Melted . | . . . Combat Hostiles . | . . . Parts Melted . | . . . Heat Transferred 875 | 25 850 . Parts Sabotaged . | . . . Parts Stolen . | . . . Parts Stripped . | . . . Power Chain Reactions . | . . . Alert | -11 -10 -10 ------- Run | Yrd Mat Sub Peak Influence 211 | 5 211 . Initial 3 | . 3 . Average 79 | 3 80 . Maximum Alert Level 1 | . 1 . Low Security (%) 97 | 100 97 . Level 1 2 | . 2 . Level 2 . | . . . Level 3 . | . . . Level 4 . | . . . Level 5 . | . . . High Security . | . . . Max Security . | . . . Squads Dispatched 3 | . 3 . Investigation . | . . . Extermination . | . . . Reinforcement 3 | . 3 . Assault . | . . . Garrison . | . . . Intercept . | . . . Searches Triggered . | . . . Construction Impeded . | . . . Haulers Reinforced . | . . . Active Scanning Responses . | . . . Cargo Convoy Interrupts . | . . . Stealth | -11 -10 -10 --------- Run | Yrd Mat Sub Distress Signals 1 | . 1 . Communications Jammed . | . . . Distress Signals . | . . . Times Spotted 42 | . 26 16 Peak Tracking Total 6 | . 3 6 Tactical Retreats 5 | . 4 1 Traps | -11 -10 -10 ------- Run | Yrd Mat Sub Traps Triggered 3 | . 2 1 Indirectly . | . . . Trap Hack Attempts . | . . . Triggered . | . . . Disarmed . | . . . Reprogrammed . | . . . Reused . | . . . Traps Extracted . | . . . Installed . | . . . Triggered . | . . . Machines | -11 -10 -10 ---------- Run | Yrd Mat Sub Machines Disabled 2 | . 1 1 Max in Single Turn 1 | . 1 1 Machines Repaired . | . . . Machines Dismantled . | . . . Machines Sabotaged . | . . . Overloaded Fab Kills . | . . . Hacking | -11 -10 -10 --------- Run | Yrd Mat Sub Machines Accessed 9 | . 7 2 Terminals 5 | . 5 . Fabricators . | . . . Repair Stations . | . . . Recycling Units 2 | . 2 . Scanalyzers . | . . . Garrison Access . | . . . Total Hacks 22 | . 20 2 Successful 12 | . 10 2 Failed 9 | . 9 . Catastrophic 1 | . 1 . Database Lockouts 1 | . 1 . Manual 20 | . 20 . Terminals 16 | . 16 . Fabricators . | . . . Repair Stations . | . . . Recycling Units 4 | . 4 . Scanalyzers . | . . . Garrison Access . | . . . Terminal Hacks 4 | . 2 2 Robot Analysis 2 | . 2 . Open Door 1 | . . 1 Release Object 1 | . . 1 Fabricator Hacks . | . . . Repair Station Hacks . | . . . Recycling Unit Hacks . | . . . Scanalyzer . | . . . Garrison Access Hacks . | . . . Unauthorized Hacks 8 | . 8 . Terminals 5 | . 5 . Botnet 5 | . 5 . Fabricators . | . . . Repair Stations . | . . . Recycling Units 3 | . 3 . Reject 1 | . 1 . Mask 2 | . 2 . Scanalyzers . | . . . Garrison Access . | . . . Data Cores Recovered . | . . . Used . | . . . Hacking Detections 4 | . 4 . Full Trace Events . | . . . Feedback Events . | . . . Feedback Blocked . | . . . Robot Schematics Acquired . | . . . Robots Built . | . . . Authchips . | . . . Time . | . . . Total Robot Build Rating . | . . . Part Schematics Acquired . | . . . Parts Built . | . . . Authchips . | . . . Time . | . . . Total Part Build Rating . | . . . Parts Repaired . | . . . Time . | . . . Parts Recycled . | . . . Recycled Matter . | . . . Retrieved Matter . | . . . Retrieved Components . | . . . Parts Scanalyzed . | . . . Part Schematics Acquired . | . . . Parts Damaged . | . . . Bothacking | -11 -10 -10 ------------ Run | Yrd Mat Sub Used RIF Installer . | . . . Robots Hacked . | . . . Non-combat . | . . . Combat . | . . . Robot Hacks Applied . | . . . Relay Couplers Released . | . . . Fabnet Peak Effective % . | . . . Robots Rewired . | . . . Allies Hacked . | . . . Hacks Repelled . | . . . Allies | -11 -10 -10 -------- Run | Yrd Mat Sub Total Allies . | . . . Largest Group . | . . . Highest-Rated Group . | . . . Highest-Rated Ally . | . . . Total Orders . | . . . Ally Attacks . | . . . Total Damage . | . . . Kills . | . . . Allies Corrupted . | . . . Allies Melted . | . . . Intel | -11 -10 -10 ------- Run | Yrd Mat Sub Robot Analysis Total 2 | . 2 . Derelict Logs Recovered 2 | . . 2 Drone Launches . | . . . Drone Recoveries . | . . . Exploration | -11 -10 -10 ------------- Run | Yrd Mat Sub Turns Passed 5077 | 20 1772 3285 Spaces Moved 2089 | 12 851 1226 Core 15 | . . 15 Treads 2013 | . 802 1211 Legs 61 | 12 49 . Wheels . | . . . Hover . | . . . Flight . | . . . Fastest Speed 120 | 120 120 160 Average Speed 190 | 120 157 214 Slowest Speed 400 | 120 240 400 Overloaded Moves . | . . . Propulsion Burnouts . | . . . Robots Hopped . | . . . Cave-ins Triggered . | . . . Exploration Rate (%) 53 | 2 99 58 Regions Visited 2 Branch Regions 1 Pre-discovered Areas . | . . . Known Exits Taken . | . . . Unknown Exits Taken 2 | 1 1 . Scrap Searched 11 | . . 11 Spaces Dug . | . . . Terrain Destroyed 2 | . . 2 Melee . | . . . Projectile 2 | . . 2 AOE . | . . . Terrain Rammed . | . . . Walls Destroyed . | . . . Machines Disabled . | . . . Actions | -11 -10 -10 --------- Run | Yrd Mat Sub Total 2979 | 14 1186 1779 Wait 691 | . 217 474 Move 2087 | 11 850 1226 Hop . | . . . Pick Up 28 | . 25 3 Fast Attach 15 | 1 9 5 Attach 1 | . 1 . Detach . | . . . Swap 13 | 1 7 5 Drop 33 | . 26 7 Fire 109 | 1 51 57 Melee 2 | . . 2 Ram . | . . . Kick . | . . . Crush . | . . . Escape Stasis . | . . . Rewire . | . . . Trap . | . . . Miscellaneous . | . . . Route ------- -11/Scrapyard -10/Materials (discovered 6 exits: [*Mat x3] / [*Min x2] / *Sub) -10/Subcaves (discovered 1 exit: [*Rec]) History --------- Turn | Location | Event 1 | -11/Scrapyard | Discovered new exit (range 3) 21 | -11/Scrapyard | Entered Materials 232 | -10/Materials | Discovered new exit (range 16) 234 | -10/Materials | Central database locked down 315 | -10/Materials | Build established: Mutant 392 | -10/Materials | Discovered new exit (range 16) 999 | -10/Materials | Discovered new exit (range 9) 1121 | -10/Materials | Derelicts attacked the area 1368 | -10/Materials | Discovered new exit (range 9) 1471 | -10/Materials | Discovered new exit (range 8) 1768 | -10/Materials | Discovered new exit (range 13) 1793 | -10/Materials | Entered Subcaves 1894 | -10/Subcaves | Discovered new exit (range 12) 1913 | -10/Subcaves | Core integrity fell below 50% 2321 | -10/Subcaves | Shifting Twisted Machinery released Barrage Gun 2877 | -10/Subcaves | Learned Materials terminal intel 3120 | -10/Subcaves | Learned Materials trap positions 3151 | -10/Subcaves | Disturbed a concealed Subdweller 3170 | -10/Subcaves | Core integrity fell below 20% 3553 | -10/Subcaves | Build established: Derelict-Mutant 5078 | -10/Subcaves | Destroyed by XM-9ZB(R) with Subdweller Machine Gun Last Messages --------------- 04551_ Acquired 3 matter. 04555_ Searching scrap... 04555_ Found Mak. Sword. 04555_ Found 38 Matter. 04558_ Dropped Mining Laser. 04558_ Acquired Mak. Sword. 04573_ Subatomizers dissect the Sub. Monowheel. 04584_ Subatomizers dissect the Sub. Monowheel, destroying it. 04806_ G-47 Trooper knocked back. 04817_ G-47 Trooper destroyed. 04822_ Particle Gun fries itself beyond repair. 04823_ G-34 Mercenary destroyed. 04828_ Aluminum Leg fries itself beyond repair. 04828_ Acquired 40 matter. 04829_ Acquired 5 matter. 04831_ Acquired 18 matter. 04861_ Subatomizers dissect the Disposable Heat Sink. 04941_ 5B-D82(u) builds Twisted Machinery. 05048_ X4-75L(u) tweaks Twisted Machinery. 05076_ X4-75L(u) builds Twisted Machinery. Map ----- +----------------------------------------------------+ | ?????????????????????????????????????????????????? | | ?????????????????????????????????????????????????? | | ?????????????????????????????????????????????????? | | ?????????????????????????????????????????????????? | | ?????????????????????????????????????????????????? | | ?????????????????????????????????????????????????? | | ?????????????????????????????????????????????????? | | ?????????????????????????????????????????????????? | | ?????????????????????????????????????????????????? | | ??##?????????????????????????????????????????????? | | ## #?????????????????????????????????????????????? | | # ##????????????????????????????????????????????? | | #????????????????????????????????????????????? | | ##????????????????????????????????????????????? | | #??#####??????????????????????????????????????? | | ##?## ###????????????????????????????????????? | | ##??# ##???????????????????????????????????? | | ##???# #???????????????????????????????????? | | #????# #???????????????????????????????????? | | #????## #???????????????????????????????????? | | ####### #???????????????????????????????????? | | ## #???????????????????????????????????? | | ##???????????????????????????????????? | | " #????????????????????????????????????? | | #?????????#####??????????? #????????? | | """"" ####??????#" @####????? ????????? | | ## "" ##????## # #### ???????? | | ###" ###### " R" ???????? | | #?##### # ## "" R " #???????????? | | ##?????# "" """ ##" #### #???????????? | | #??????#### "u """ ##?###?????????????????? | | ##?????????# ### """ ##??????????????????????? | | ##??????????# ##?###"""#???????????????????????? | | ????????????## ##????#"""#???????????????????????? | | ?????????????# #?????##"""???????????????????????? | | ?????????????###??????####???????????????????????? | | ?????????????????????????????????????????????????? | | ?????????????????????????????????????????????????? | | ?????????????????????????????????????????????????? | | ?????????????????????????????????????????????????? | | ?????????????????????????????????????????????????? | | ?????????????????????????????????????????????????? | | ?????????????????????????????????????????????????? | | ?????????????????????????????????????????????????? | | ?????????????????????????????????????????????????? | | ?????????????????????????????????????????????????? | | ?????????????????????????????????????????????????? | | ?????????????????????????????????????????????????? | | ?????????????????????????????????????????????????? | | ?????????????????????????????????????????????????? | +----------------------------------------------------+ Best States ------------- Heat Dissipation 25 Energy Generation 10 Energy Capacity 250 Matter Stores 300 Matter Capacity 300 Sight Range 18 Terrain Scan Range 16 Terrain Scan Density 10 Armor Coverage 150 Evasion (%) 55 Recoil Reduction 2 Item Schematics ----------------- None Robot Schematics ------------------ None Fabricated ------------ Nothing Alien Tech Used ----------------- None Achievements -------------- None Challenges ------------ None Game ------ Seed BattleStorageScythe Manual? 0 Play Time 00:21:55 Cumulative 130.9 hours Start 2024.09.20 @ 18:41:26 End 2024.09.20 @ 19:01:21 Sessions 1 Manual Loads 0 Difficulty Rogue Special Mode None Game No. 179 Rogue 179 Adventurer 0 Explorer 0 Win Type - Total 1 Types 1/0/0/0/0/0/0/0/0 Lore% 43 Gallery% 60 Achievement% 47 Wizard Run 0 Options --------- Layout 0 ASCII 0 Keyboard 0 Movement Mouse Keybinds 1 Fullscreen 1 Font 18/TerminusBold Map View 76x50 Zoom Use 0% Tactical HUD 1 Map Filters NONE Filters NONE Steam 1 RUN: 9fca682b-c8b4-4006-b304-60a806216db3